[Event "FIDE WYCC Girls U18 2023"]
[Site "Montesilvano"]
[Date "2023.11.13"]
[Round "1.31"]
[White "Ham Corona, Ana Paola"]
[Black "Petricenco, Ana"]
[Result "0-1"]
[ECO "B23"]
[WhiteElo "1318"]
[BlackElo "1902"]
[Annotator "NA"]
[PlyCount "74"]
[EventDate "2023.11.13"]
[EventType "swiss"]
[EventCountry "ITA"]
[SourceTitle "playchess.com"]
[Source "ChessBase"]
[SourceQuality "1"]
[TimeControl "40/5400+30:1800+30"]

1. e4 {[%emt 0:00:29]} c5 {[%emt 0:00:12]} 2. Nc3 {[%emt 0:00:26]} Nc6 {[%emt 0:00:09]} 3. f4 {[%emt 0:00:34]} g6 {[%emt 0:00:57]} 4. Bc4 {[%emt 0:00:55]} Bg7 {[%emt 0:02:21]} 5. Nf3 {[%emt 0:00:52]} d6 {[%emt 0:01:54]} 6. O-O {[%emt 0:01:30]} e6 {[%emt 0:00:12]} 7. d3 {[%emt 0:00:52]} Nge7 {[%emt 0:00:23]} 8. Qe1 {[%emt 0:00:40]} O-O {[%emt 0:01:06]} 9. f5 {[%emt 0:04:38]} exf5 {[%emt 0:08:39]} 10. Qh4 {[%emt 0:02:43]} a6 {[%emt 0:30:17]} 11. a4 {[%emt 0:07:21]} Qe8 {[%emt 0:03:03]} 12. Bh6 {[%emt 0:05:51]} Ne5 {[%emt 0:20:00]} 13. Ba2 {[%emt 0:08:59]} Bxh6 {[%emt 0:08:49]} 14. Qxh6 {[%emt 0:02:26]} Ng4 {[%emt 0:00:05]} 15. Qh4 {[%emt 0:03:36]} Kg7 {[%emt 0:07:55]} 16. Rae1 {[%emt 0:04:45]} Ne5 {[%emt 0:02:13]} 17. Nxe5 {[%emt 0:04:42]} dxe5 {[%emt 0:00:06]} 18. Rf3 {[%emt 0:05:50]} Bd7 {[%emt 0:04:09]} 19. Rh3 {[%emt 0:05:14]} h5 {[%emt 0:00:26]} 20. Qg3 {[%emt 0:02:50]} f4 {[%emt 0:00:33]} 21. Qg5 {[%emt 0:05:32]} Bxh3 {[%emt 0:00:49]} 22. gxh3 {[%emt 0:00:05]} f6 {[%emt 0:00:09]} 23. Qg2 {[%emt 0:00:22]} b5 {[%emt 0:00:33]} 24. axb5 {[%emt 0:00:30]} axb5 {[%emt 0:00:05]} 25. Bd5 {[%emt 0:01:58]} Nxd5 {[%emt 0:01:39]} 26. Nxd5 {[%emt 0:00:06]} Ra2 {[%emt 0:00:26]} 27. b3 {[%emt 0:02:10]} Qf7 {[%emt 0:00:48]} 28. Kh1 {[%emt 0:00:39]} Rfa8 {[%emt 0:00:23]} 29. Rg1 {[%emt 0:02:12]} Ra1 {[%emt 0:00:10]} 30. h4 {[%emt 0:00:45]} R8a2 {[%emt 0:00:58]} 31. Nb6 {[%emt 0:05:05]} Rxg1+ {[%emt 0:00:35]} 32. Kxg1 {[%emt 0:00:08]} Qa7 {[%emt 0:00:30]} 33. Nd5 {[%emt 0:02:12]} c4+ {[%emt 0:00:08]} 34. Kf1 {[%emt 0:00:39]} cxd3 {[%emt 0:00:41]} 35. Ke1 {[%emt 0:01:20]} dxc2 {[%emt 0:00:24]} 36. Qd2 {[%emt 0:01:25]} c1=Q+ {[%emt 0:00:16]} 37. Qxc1 {[%emt 0:00:06]} Qg1# {[%emt 0:00:07]} 0-1

[Event "FIDE WYCC Girls U18 2023"]
[Site "Montesilvano"]
[Date "2023.11.13"]
[Round "1.32"]
[White "Wisniowski, Natalie"]
[Black "Gavrileva, Anna"]
[Result "1-0"]
[ECO "D31"]
[WhiteElo "1901"]
[BlackElo "1316"]
[Annotator "NA"]
[PlyCount "59"]
[EventDate "2023.11.13"]
[EventType "swiss"]
[EventCountry "ITA"]
[SourceTitle "playchess.com"]
[Source "ChessBase"]
[SourceQuality "1"]
[TimeControl "40/5400+30:1800+30"]

1. d4 {[%emt 0:00:02]} d5 {[%emt 0:00:05]} 2. c4 {[%emt 0:00:10]} e6 {[%emt 0:00:07]} 3. Nc3 {[%emt 0:00:11]} c6 {[%emt 0:00:33]} 4. e4 {[%emt 0:00:17]} Bb4 {[%emt 0:09:26]} 5. cxd5 {[%emt 0:00:51]} exd5 {[%emt 0:03:31]} 6. e5 {[%emt 0:00:23]} Bf5 {[%emt 0:03:00]} 7. Bd3 {[%emt 0:02:57]} Bxd3 {[%emt 0:05:56]} 8. Qxd3 {[%emt 0:00:13]} Ne7 {[%emt 0:05:39]} 9. Nf3 {[%emt 0:02:56]} h6 {[%emt 0:02:31]} 10. O-O {[%emt 0:03:35]} Nd7 {[%emt 0:04:37]} 11. Nh4 {[%emt 0:14:19]} O-O {[%emt 0:09:08]} 12. a3 {[%emt 0:10:08]} Ba5 {[%emt 0:15:10]} 13. b4 {[%emt 0:08:01]} Bc7 {[%emt 0:06:12]} 14. f4 {[%emt 0:05:46]} f5 {[%emt 0:08:35]} 15. Be3 {[%emt 0:11:36]} Nb6 {[%emt 0:04:34]} 16. Bf2 {[%emt 0:03:25]} Qd7 {[%emt 0:03:05]} 17. Kh1 {[%emt 0:03:17]} Rae8 {[%emt 0:03:53]} 18. Rae1 {[%emt 0:02:40]} Qe6 {[%emt 0:01:07]} 19. Qc2 {[%emt 0:09:24]} Nc4 {[%emt 0:04:53]} 20. a4 {[%emt 0:02:02]} b6 {[%emt 0:02:45]} 21. b5 {[%emt 0:01:16]} Rc8 {[%emt 0:03:28]} 22. Qe2 {[%emt 0:02:05]} Bd8 {[%emt 0:00:53]} 23. Rc1 {[%emt 0:01:50]} cxb5 {[%emt 0:01:52]} 24. axb5 {[%emt 0:01:09]} Re8 {[%emt 0:00:53]} 25. Rfe1 {[%emt 0:01:10]} Ng6 {[%emt 0:00:19]} 26. Nxg6 {[%emt 0:00:46]} Qxg6 {[%emt 0:00:06]} 27. Nxd5 {[%emt 0:00:39]} Nd6 {[%emt 0:01:03]} 28. Qa2 {[%emt 0:02:50]} Qf7 {[%emt 0:00:36]} 29. exd6 {[%emt 0:00:56]} Rxe1+ {[%emt 0:00:17]} 30. Rxe1 {[%emt 0:00:08]} 1-0

[Event "FIDE WYCC Girls U18 2023"]
[Site "Montesilvano"]
[Date "2023.11.13"]
[Round "1.33"]
[White "Yim, Jay"]
[Black "Nguyen, Thien Ngan"]
[Result "0-1"]
[ECO "C54"]
[WhiteElo "1310"]
[BlackElo "1891"]
[Annotator "NA"]
[PlyCount "68"]
[EventDate "2023.11.13"]
[EventType "swiss"]
[EventCountry "ITA"]
[SourceTitle "playchess.com"]
[Source "ChessBase"]
[SourceQuality "1"]
[TimeControl "40/5400+30:1800+30"]

1. e4 {[%emt 0:00:03]} e5 {[%emt 0:00:12]} 2. Nf3 {[%emt 0:00:11]} Nc6 {[%emt 0:00:08]} 3. Bc4 {[%emt 0:00:14]} Bc5 {[%emt 0:00:21]} 4. c3 {[%emt 0:00:34]} Nf6 {[%emt 0:00:10]} 5. d4 {[%emt 0:00:18]} exd4 {[%emt 0:00:08]} 6. b4 {[%emt 0:00:23]} Be7 {[%emt 0:06:01]} 7. b5 {[%emt 0:09:12]} Na5 {[%emt 0:05:42]} 8. Qxd4 {[%emt 0:08:13]} Nxc4 {[%emt 0:05:00]} 9. Qxc4 {[%emt 0:00:10]} d5 {[%emt 0:02:39]} 10. exd5 {[%emt 0:03:44]} Qxd5 {[%emt 0:03:59]} 11. Qxd5 {[%emt 0:07:01]} Nxd5 {[%emt 0:00:11]} 12. a4 {[%emt 0:09:34]} a6 {[%emt 0:04:04]} 13. c4 {[%emt 0:05:21]} Nb6 {[%emt 0:08:15]} 14. Nbd2 {[%emt 0:05:28]} axb5 {[%emt 0:03:43]} 15. cxb5 {[%emt 0:04:52]} Rxa4 {[%emt 0:01:42]} 16. Rxa4 {[%emt 0:06:01]} Nxa4 {[%emt 0:02:37]} 17. Nb3 {[%emt 0:05:02]} Bd7 {[%emt 0:04:48]} 18. Bf4 {[%emt 0:09:59]} Bb4+ {[%emt 0:06:45]} 19. Nfd2 {[%emt 0:01:59]} O-O {[%emt 0:05:09]} 20. Kd1 {[%emt 0:02:39]} Nc3+ {[%emt 0:00:39]} 21. Kc2 {[%emt 0:02:49]} Bf5+ {[%emt 0:01:16]} 22. Kb2 {[%emt 0:02:13]} Na4+ {[%emt 0:04:34]} 23. Kc1 {[%emt 0:02:37]} Ba3+ {[%emt 0:07:29]} 24. Kd1 {[%emt 0:01:09]} Nc3+ {[%emt 0:01:31]} 25. Ke1 {[%emt 0:02:40]} Nxb5 {[%emt 0:00:54]} 26. f3 {[%emt 0:02:42]} Re8+ {[%emt 0:08:43]} 27. Kf2 {[%emt 0:01:08]} Bd3 {[%emt 0:03:55]} 28. Kg3 {[%emt 0:03:59]} b6 {[%emt 0:01:06]} 29. Ra1 {[%emt 0:01:22]} c5 {[%emt 0:00:48]} 30. Nb1 {[%emt 0:02:20]} Bxb1 {[%emt 0:02:38]} 31. Rxb1 {[%emt 0:00:11]} Nc3 {[%emt 0:00:07]} 32. Ra1 {[%emt 0:00:36]} Bb2 {[%emt 0:00:05]} 33. Ra6 {[%emt 0:01:24]} Ne2+ {[%emt 0:00:08]} 34. Kg4 {[%emt 0:00:33]} f5+ {[%emt 0:01:04]} 0-1

[Event "FIDE WYCC Girls U18 2023"]
[Site "Montesilvano"]
[Date "2023.11.13"]
[Round "1.34"]
[White "Katter, Katharina"]
[Black "Lunar Villaman, Sofia"]
[Result "1-0"]
[ECO "A49"]
[WhiteElo "1887"]
[BlackElo "1305"]
[Annotator "NA"]
[PlyCount "39"]
[EventDate "2023.11.13"]
[EventType "swiss"]
[EventCountry "ITA"]
[SourceTitle "playchess.com"]
[Source "ChessBase"]
[SourceQuality "1"]
[TimeControl "40/5400+30:1800+30"]

1. d4 {[%emt 0:00:05]} Nf6 {[%emt 0:00:14]} 2. Nf3 {[%emt 0:00:22]} g6 {[%emt 0:00:11]} 3. g3 {[%emt 0:00:40]} Bg7 {[%emt 0:00:14]} 4. Bg2 {[%emt 0:00:15]} d6 {[%emt 0:00:23]} 5. O-O {[%emt 0:00:18]} O-O {[%emt 0:00:09]} 6. Nc3 {[%emt 0:00:19]} Nbd7 {[%emt 0:06:05]} 7. a4 {[%emt 0:00:31]} a6 {[%emt 0:03:59]} 8. a5 {[%emt 0:00:52]} Re8 {[%emt 0:01:34]} 9. h3 {[%emt 0:08:10]} e5 {[%emt 0:22:24]} 10. e4 {[%emt 0:02:49]} h6 {[%emt 0:17:53]} 11. Re1 {[%emt 0:02:39]} Rb8 {[%emt 0:05:04]} 12. Be3 {[%emt 0:04:18]} Qe7 {[%emt 0:09:56]} 13. Qd2 {[%emt 0:02:03]} Kh7 {[%emt 0:11:57]} 14. Nh2 {[%emt 0:04:08]} exd4 {[%emt 0:07:31]} 15. Bxd4 {[%emt 0:00:47]} c5 {[%emt 0:05:29]} 16. Be3 {[%emt 0:02:15]} Ne5 {[%emt 0:00:41]} 17. b3 {[%emt 0:00:47]} Nc6 {[%emt 0:01:48]} 18. Rad1 {[%emt 0:07:02]} Rd8 {[%emt 0:01:32]} 19. Nd5 {[%emt 0:03:03]} Be6 {[%emt 0:01:38]} 20. Nxe7 {[%emt 0:00:14]} 1-0

[Event "FIDE WYCC Girls U18 2023"]
[Site "Montesilvano"]
[Date "2023.11.13"]
[Round "1.35"]
[White "Lu, Yun-Ru"]
[Black "Luong, Hoang Tu Linh"]
[Result "0-1"]
[ECO "B20"]
[WhiteElo "1284"]
[BlackElo "1887"]
[Annotator "NA"]
[PlyCount "70"]
[EventDate "2023.11.13"]
[EventType "swiss"]
[EventCountry "ITA"]
[SourceTitle "playchess.com"]
[Source "ChessBase"]
[SourceQuality "1"]
[TimeControl "40/5400+30:1800+30"]

1. e4 {[%emt 0:00:02]} c5 {[%emt 0:00:13]} 2. Bc4 {[%emt 0:00:36]} d6 {[%emt 0:00:37]} 3. Nc3 {[%emt 0:00:44]} a6 {[%emt 0:00:27]} 4. a4 {[%emt 0:01:28]} Nf6 {[%emt 0:00:41]} 5. Nf3 {[%emt 0:00:28]} Nc6 {[%emt 0:01:17]} 6. d3 e6 {[%emt 0:02:48]} 7. Bg5 {[%emt 0:08:16]} Be7 {[%emt 0:01:12]} 8. O-O {[%emt 0:04:07]} O-O {[%emt 0:03:43]} 9. Rb1 Qc7 10. h3 {[%emt 0:04:18]} Rd8 {[%emt 0:03:05]} 11. Re1 {[%emt 0:06:54]} Rb8 {[%emt 0:12:16]} 12. Re3 {[%emt 0:14:07]} Nd4 {[%emt 0:06:44]} 13. Qc1 {[%emt 0:11:34]} b5 {[%emt 0:09:07]} 14. axb5 {[%emt 0:00:11]} axb5 {[%emt 0:00:06]} 15. Nxd4 {[%emt 0:01:36]} cxd4 {[%emt 0:01:32]} 16. Nxb5 {[%emt 0:00:14]} Rxb5 {[%emt 0:02:05]} 17. Bxb5 {[%emt 0:07:08]} dxe3 {[%emt 0:02:03]} 18. fxe3 {[%emt 0:02:10]} Qc5 {[%emt 0:05:07]} 19. Bxf6 {[%emt 0:05:19]} Bxf6 {[%emt 0:00:12]} 20. Ba4 {[%emt 0:01:35]} Qb4 {[%emt 0:05:40]} 21. Bb3 {[%emt 0:00:13]} Bb7 {[%emt 0:04:36]} 22. Qf1 {[%emt 0:02:38]} h6 {[%emt 0:01:29]} 23. Qf4 {[%emt 0:02:19]} Bg5 {[%emt 0:03:00]} 24. Qf2 {[%emt 0:02:51]} Qb6 {[%emt 0:03:04]} 25. d4 {[%emt 0:01:30]} Bxe4 {[%emt 0:00:39]} 26. Rf1 {[%emt 0:00:28]} Qb7 {[%emt 0:01:21]} 27. h4 {[%emt 0:05:39]} Bf6 {[%emt 0:01:06]} 28. Qg3 {[%emt 0:00:35]} Qe7 {[%emt 0:00:27]} 29. Rf4 {[%emt 0:01:22]} d5 {[%emt 0:00:31]} 30. Qe1 {[%emt 0:01:56]} e5 {[%emt 0:01:13]} 31. dxe5 {[%emt 0:01:30]} Bxe5 {[%emt 0:00:14]} 32. Rg4 {[%emt 0:01:46]} Bxb2 {[%emt 0:01:42]} 33. c3 {[%emt 0:01:26]} Rc8 {[%emt 0:01:37]} 34. Qd1 {[%emt 0:04:37]} Rxc3 {[%emt 0:01:05]} 35. Qd2 {[%emt 0:01:02]} Rxb3 {[%emt 0:01:04]} 0-1

[Event "FIDE WYCC Girls U18 2023"]
[Site "Montesilvano"]
[Date "2023.11.14"]
[Round "2.1"]
[White "Starosta, Martyna"]
[Black "Wisniowski, Natalie"]
[Result "1-0"]
[ECO "B23"]
[WhiteElo "2208"]
[BlackElo "1901"]
[Annotator "ChessBase"]
[PlyCount "49"]
[EventDate "2023.11.13"]
[EventType "swiss"]
[EventCountry "ITA"]
[SourceTitle "playchess.com"]
[Source "ChessBase"]
[SourceQuality "1"]
[TimeControl "40/5400+30:1800+30"]

1. e4 {[%emt 0:00:03]} c5 {[%emt 0:00:07]} 2. Nc3 {[%emt 0:00:05]} a6 {[%emt 0:00:11]} 3. g3 {[%emt 0:00:06]} b5 {[%emt 0:00:13]} 4. Bg2 {[%emt 0:00:20]} Bb7 {[%emt 0:00:18]} 5. Nge2 {[%emt 0:01:42]} e6 {[%emt 0:01:04]} 6. d4 {[%emt 0:02:19]} cxd4 {[%emt 0:05:09]} 7. Nxd4 {[%emt 0:00:06]} Nc6 {[%emt 0:00:47]} 8. O-O {[%emt 0:06:19]} Nge7 {[%emt 0:05:19]} 9. Nb3 {[%emt 0:07:25]} d6 {[%emt 0:05:46]} 10. f4 {[%emt 0:04:04]} g6 {[%emt 0:08:11]} 11. f5 {[%emt 0:10:43]} gxf5 {[%emt 0:16:42]} 12. Qh5 {[%emt 0:11:15]} Qb6+ {[%emt 0:04:29]} 13. Kh1 {[%emt 0:00:29]} Ne5 {[%emt 0:03:10]} 14. Bf4 {[%emt 0:08:29]} Bg7 {[%emt 0:19:34]} 15. Rae1 {[%emt 0:12:43]} a5 {[%emt 0:19:46]} 16. Be3 {[%emt 0:01:26]} Qa6 {[%emt 0:01:45]} 17. Nd4 {[%emt 0:02:07]} b4 {[%emt 0:02:46]} 18. Nxe6 {[%emt 0:02:58]} Qc6 {[%emt 0:03:12]} 19. Nxg7+ {[%emt 0:01:37]} Kf8 {[%emt 0:00:35]} 20. Nd5 {[%emt 0:02:25]} Nxd5 {[%emt 0:00:43]} 21. exd5 {[%emt 0:00:11]} Qxc2 {[%emt 0:00:36]} 22. Nxf5 {[%emt 0:00:32]} Qc7 {[%emt 0:00:34]} 23. Qh6+ {[%emt 0:00:20]} Ke8 {[%emt 0:00:21]} 24. Nxd6+ {[%emt 0:00:32]} Kd8 {[%emt 0:00:38]} 25. Qf6+ {[%emt 0:00:21]} 1-0

[Event "FIDE WYCC Girls U18 2023"]
[Site "Montesilvano"]
[Date "2023.11.14"]
[Round "2.2"]
[White "Barwinska, Ewa"]
[Black "Balabayeva, Xeniya"]
[Result "0-1"]
[ECO "B10"]
[WhiteElo "1974"]
[BlackElo "2192"]
[Annotator "ChessBase"]
[PlyCount "98"]
[EventDate "2023.11.13"]
[EventType "swiss"]
[EventCountry "ITA"]
[SourceTitle "playchess.com"]
[Source "ChessBase"]
[SourceQuality "1"]
[TimeControl "40/5400+30:1800+30"]

1. e4 {[%emt 0:00:02]} c6 {[%emt 0:00:08]} 2. Nf3 {[%emt 0:00:13]} d5 {[%emt 0:00:14]} 3. d3 {[%emt 0:00:09]} g6 {[%emt 0:03:45]} 4. e5 {[%emt 0:00:48]} Bg7 {[%emt 0:02:28]} 5. Bf4 {[%emt 0:04:55]} Qb6 {[%emt 0:04:32]} 6. Qc1 {[%emt 0:05:10]} Bg4 {[%emt 0:04:55]} 7. Nbd2 {[%emt 0:02:07]} c5 {[%emt 0:05:08]} 8. Be2 {[%emt 0:03:06]} Nc6 {[%emt 0:02:33]} 9. h3 {[%emt 0:01:24]} Bxf3 {[%emt 0:01:30]} 10. Nxf3 {[%emt 0:00:13]} e6 {[%emt 0:01:23]} 11. O-O {[%emt 0:07:35]} Nge7 {[%emt 0:07:07]} 12. Re1 {[%emt 0:02:51]} O-O {[%emt 0:04:05]} 13. c3 {[%emt 0:02:07]} Rae8 {[%emt 0:22:26]} 14. Bd1 {[%emt 0:04:41]} Kh8 {[%emt 0:07:46]} 15. Bg5 {[%emt 0:15:19]} Ng8 {[%emt 0:05:12]} 16. Ba4 {[%emt 0:06:03]} Qa6 {[%emt 0:01:28]} 17. Bxc6 {[%emt 0:01:26]} Qxc6 {[%emt 0:00:12]} 18. d4 {[%emt 0:03:17]} c4 {[%emt 0:03:10]} 19. Qf4 {[%emt 0:09:07]} Qc7 {[%emt 0:11:03]} 20. Qh4 {[%emt 0:00:57]} f6 {[%emt 0:05:54]} 21. exf6 {[%emt 0:01:00]} Bxf6 {[%emt 0:00:01]} 22. Bxf6+ {[%emt 0:04:00]} Rxf6 {[%emt 0:04:37]} 23. Re5 {[%emt 0:02:03]} Kg7 {[%emt 0:00:55]} 24. Rae1 {[%emt 0:01:25]} Qd7 {[%emt 0:00:13]} 25. Qg5 {[%emt 0:03:20]} Ne7 {[%emt 0:01:04]} 26. Nh2 {[%emt 0:04:32]} h6 {[%emt 0:01:05]} 27. Qd2 {[%emt 0:00:56]} g5 {[%emt 0:00:32]} 28. h4 {[%emt 0:06:53]} gxh4 {[%emt 0:00:27]} 29. Rh5 {[%emt 0:02:15]} Qd6 {[%emt 0:00:34]} 30. Rxh4 {[%emt 0:01:13]} Rg6 {[%emt 0:00:30]} 31. Rg4 {[%emt 0:01:18]} Rf8 {[%emt 0:00:30]} 32. Qe2 {[%emt 0:00:44]} Rff6 {[%emt 0:00:28]} 33. Rxg6+ {[%emt 0:02:01]} Nxg6 {[%emt 0:00:32]} 34. Ng4 {[%emt 0:01:08]} Nf4 {[%emt 0:00:29]} 35. Qf3 {[%emt 0:00:59]} Rg6 {[%emt 0:00:30]} 36. Re5 {[%emt 0:01:53]} Nd3 {[%emt 0:00:08]} 37. Re2 {[%emt 0:00:55]} Qf4 {[%emt 0:00:46]} 38. Ne5 {[%emt 0:00:43]} Qxf3 {[%emt 0:00:33]} 39. Nxf3 {[%emt 0:00:04]} Nf4 {[%emt 0:00:18]} 40. Re5 {[%emt 0:00:00]} Rxg2+ {[%emt 0:00:00]} 41. Kf1 {[%emt 0:01:01]} Kf6 {[%emt 0:03:52]} 42. b3 {[%emt 0:03:38]} b5 {[%emt 0:04:51]} 43. b4 {[%emt 0:00:59]} Rg4 {[%emt 0:02:35]} 44. Ne1 {[%emt 0:01:21]} h5 {[%emt 0:00:59]} 45. Nc2 {[%emt 0:02:46]} h4 {[%emt 0:00:51]} 46. Ne3 {[%emt 0:00:04]} Rg8 {[%emt 0:00:18]} 47. f3 {[%emt 0:00:13]} h3 {[%emt 0:00:27]} 48. Ng4+ {[%emt 0:00:20]} Rxg4 {[%emt 0:00:05]} 49. fxg4 {[%emt 0:00:05]} h2 {[%emt 0:00:08]} 0-1

[Event "FIDE WYCC Girls U18 2023"]
[Site "Montesilvano"]
[Date "2023.11.14"]
[Round "2.3"]
[White "Allahverdiyeva, Ayan"]
[Black "Katter, Katharina"]
[Result "1-0"]
[ECO "B90"]
[WhiteElo "2152"]
[BlackElo "1887"]
[Annotator "ChessBase"]
[PlyCount "83"]
[EventDate "2023.11.13"]
[EventType "swiss"]
[EventCountry "ITA"]
[SourceTitle "playchess.com"]
[Source "ChessBase"]
[SourceQuality "1"]
[TimeControl "40/5400+30:1800+30"]

1. e4 {[%emt 0:00:01]} c5 {[%emt 0:00:11]} 2. Nf3 {[%emt 0:00:04]} d6 {[%emt 0:00:14]} 3. d4 {[%emt 0:00:03]} cxd4 {[%emt 0:00:12]} 4. Nxd4 {[%emt 0:00:03]} Nf6 {[%emt 0:00:15]} 5. Nc3 {[%emt 0:00:04]} a6 {[%emt 0:00:13]} 6. Be3 {[%emt 0:00:37]} e5 {[%emt 0:00:26]} 7. Nb3 {[%emt 0:00:06]} Be7 {[%emt 0:00:24]} 8. f3 {[%emt 0:00:34]} Be6 {[%emt 0:00:32]} 9. Qd2 {[%emt 0:00:04]} h5 {[%emt 0:00:16]} 10. Be2 {[%emt 0:00:08]} Nbd7 {[%emt 0:01:08]} 11. Nd5 {[%emt 0:00:07]} Bxd5 {[%emt 0:00:37]} 12. exd5 {[%emt 0:00:05]} Qc7 {[%emt 0:00:14]} 13. Na5 {[%emt 0:04:49]} Bd8 {[%emt 0:09:59]} 14. b4 {[%emt 0:00:41]} e4 {[%emt 0:04:48]} 15. O-O {[%emt 0:01:59]} O-O {[%emt 0:06:09]} 16. fxe4 {[%emt 0:10:10]} Nxe4 {[%emt 0:01:59]} 17. Qd3 {[%emt 0:01:18]} Nef6 {[%emt 0:03:06]} 18. c4 {[%emt 0:10:38]} Ne5 {[%emt 0:01:40]} 19. Qd2 {[%emt 0:06:45]} Qd7 {[%emt 0:11:11]} 20. Nb3 {[%emt 0:11:22]} Rc8 {[%emt 0:05:11]} 21. Rac1 {[%emt 0:00:04]} Re8 {[%emt 0:06:46]} 22. Bd3 {[%emt 0:06:04]} Nxd3 {[%emt 0:07:03]} 23. Qxd3 {[%emt 0:00:06]} Ng4 {[%emt 0:06:24]} 24. Bf4 {[%emt 0:00:54]} Ne5 {[%emt 0:03:32]} 25. Bxe5 {[%emt 0:09:02]} Rxe5 {[%emt 0:01:34]} 26. Nd4 {[%emt 0:00:45]} Bb6 {[%emt 0:03:11]} 27. Kh1 {[%emt 0:01:33]} Bxd4 {[%emt 0:17:47]} 28. Qxd4 {[%emt 0:00:03]} Rce8 {[%emt 0:00:19]} 29. h3 {[%emt 0:05:44]} Re4 {[%emt 0:02:34]} 30. Qf2 {[%emt 0:08:48]} Qe7 {[%emt 0:01:56]} 31. c5 {[%emt 0:00:14]} f6 {[%emt 0:03:27]} 32. c6 {[%emt 0:04:24]} bxc6 {[%emt 0:00:01]} 33. dxc6 {[%emt 0:00:04]} Qc7 {[%emt 0:00:09]} 34. Qd2 {[%emt 0:04:11]} R8e5 {[%emt 0:00:26]} 35. a3 {[%emt 0:00:16]} Re3 {[%emt 0:02:17]} 36. a4 {[%emt 0:02:09]} Ra3 {[%emt 0:01:38]} 37. Rfd1 {[%emt 0:02:59]} d5 {[%emt 0:00:32]} 38. b5 {[%emt 0:00:10]} axb5 {[%emt 0:00:35]} 39. axb5 {[%emt 0:00:07]} Ree3 {[%emt 0:00:31]} 40. Qxd5+ {[%emt 0:00:00]} Kh7 {[%emt 0:00:00]} 41. Qxh5+ {[%emt 0:04:19]} Kg8 {[%emt 0:00:46]} 42. Rd7 {[%emt 0:00:40]} 1-0

[Event "FIDE WYCC Girls U18 2023"]
[Site "Montesilvano"]
[Date "2023.11.14"]
[Round "2.4"]
[White "Follana Albelda, Lucia"]
[Black "Zhurova, Anna"]
[Result "0-1"]
[ECO "C11"]
[WhiteElo "1946"]
[BlackElo "2149"]
[Annotator "NA"]
[PlyCount "74"]
[EventDate "2023.11.13"]
[EventType "swiss"]
[EventCountry "ITA"]
[SourceTitle "playchess.com"]
[Source "ChessBase"]
[SourceQuality "1"]
[TimeControl "40/5400+30:1800+30"]

1. e4 {[%emt 0:00:05]} e6 {[%emt 0:00:14]} 2. d4 {[%emt 0:00:15]} d5 {[%emt 0:00:08]} 3. Nc3 {[%emt 0:00:07]} Nf6 {[%emt 0:03:19]} 4. Bg5 {[%emt 0:03:40]} dxe4 {[%emt 0:04:42]} 5. Nxe4 {[%emt 0:00:32]} Be7 {[%emt 0:00:08]} 6. Bxf6 {[%emt 0:00:45]} gxf6 {[%emt 0:00:15]} 7. Nf3 {[%emt 0:08:04]} b6 {[%emt 0:02:03]} 8. Qd2 {[%emt 0:03:41]} Bb7 {[%emt 0:06:59]} 9. Nc3 {[%emt 0:06:21]} c6 {[%emt 0:08:16]} 10. O-O-O {[%emt 0:03:28]} Nd7 {[%emt 0:00:36]} 11. Bd3 {[%emt 0:05:58]} Qc7 {[%emt 0:01:52]} 12. Qe2 {[%emt 0:02:04]} O-O-O {[%emt 0:06:40]} 13. Ba6 {[%emt 0:03:02]} Bxa6 {[%emt 0:03:08]} 14. Qxa6+ {[%emt 0:00:07]} Kb8 {[%emt 0:00:05]} 15. Qe2 {[%emt 0:01:33]} Bd6 {[%emt 0:01:45]} 16. g3 {[%emt 0:07:02]} f5 {[%emt 0:00:46]} 17. Ng5 {[%emt 0:09:17]} Nf6 {[%emt 0:00:58]} 18. f4 {[%emt 0:00:44]} h5 {[%emt 0:00:14]} 19. Qf3 {[%emt 0:11:24]} Rd7 {[%emt 0:03:29]} 20. Kb1 {[%emt 0:03:24]} Rhd8 {[%emt 0:02:30]} 21. Ne2 {[%emt 0:05:14]} Bf8 {[%emt 0:00:31]} 22. Qb3 {[%emt 0:02:11]} Bh6 {[%emt 0:06:48]} 23. Nf3 {[%emt 0:01:44]} Ne4 {[%emt 0:00:25]} 24. Rhf1 {[%emt 0:02:16]} Bg7 {[%emt 0:00:34]} 25. c3 {[%emt 0:02:05]} Bf6 {[%emt 0:01:23]} 26. Ne5 {[%emt 0:05:30]} Bxe5 {[%emt 0:02:46]} 27. fxe5 {[%emt 0:00:06]} c5 {[%emt 0:01:17]} 28. Qc2 {[%emt 0:01:51]} Qb7 {[%emt 0:01:37]} 29. Rf4 {[%emt 0:02:53]} cxd4 {[%emt 0:00:39]} 30. Nxd4 {[%emt 0:00:51]} Rd5 {[%emt 0:03:18]} 31. Rh4 {[%emt 0:00:18]} Ka8 {[%emt 0:00:54]} 32. Rxh5 {[%emt 0:00:23]} Rxe5 {[%emt 0:01:44]} 33. Nxe6 {[%emt 0:04:20]} Nd2+ {[%emt 0:03:22]} 34. Kc1 {[%emt 0:01:43]} fxe6 {[%emt 0:00:19]} 35. c4 {[%emt 0:04:12]} Re2 {[%emt 0:14:44]} 36. b4 {[%emt 0:00:46]} Qf3 {[%emt 0:00:47]} 37. Rh7 {[%emt 0:00:33]} Qa3+ {[%emt 0:00:28]} 0-1